Cogmind - Beta 13 @@@ ROGUE MODE // 2024.08.03 @ 17:00:44 Player: Daffa0360 Result: Destroyed by H-61 Shepherd with Heavy Assault Cannon Performance ------------- Evolutions (2) 1000 Regions Visited (3) 600 Robots Destroyed (52) 260 Value Destroyed (1444) 1444 Prototype IDs (3) 60 Alien Tech Used (0) 0 Bonus (0) 0 TOTAL SCORE: 3364 Bonus ------- None Cogmind --------- Core Integrity 0/550 Matter 300/300 Energy 100/100 System Corruption 0% Temperature Cool (18) Movement Core (250) Ox4 Location -8/Materials Parts ------- > --- POWER (1) -------- (None) > --- PROPULSION (2) --- (None) > --- UTILITY (6) ------ Medium Storage Unit Signal Interpreter > --- WEAPON (2) ------- Great Maul > --- INVENTORY (10) --- Transport Network Coupler Hacking Suite Hacking Suite Mini Grenade Launcher Improved Datajack Remote Datajack Heavy Flail Katana Peak State ------------ > --- POWER ------------ Improved Ion Engine > --- PROPULSION ------- Carbon-fiber Leg Carbon-fiber Leg > --- UTILITY ---------- Medium Storage Unit Signal Interpreter Improved Propulsion Shielding Utility Shielding Hardlight Generator Hacking Suite > --- WEAPON ----------- Lightning Gun Katana > --- INVENTORY -------- Transport Network Coupler Improved Targeting Computer Hacking Suite Flak Gun Mini Grenade Launcher Improved Datajack Remote Datajack Heavy Flail Great Maul [Rating: 29] Favorites ----------- Power Improved Ion Engine Engine Improved Ion Engine Propulsion Aluminum Leg Treads Improved Treads Leg Aluminum Leg Wheel Wheel Utility Medium Storage Unit Device Sensor Array Storage Medium Storage Unit Processor Signal Interpreter Hackware Hacking Suite Protection Utility Shielding Weapon Advanced Beam Cannon Energy Gun Lightning Gun Energy Cannon Advanced Beam Cannon Ballistic Gun Heavy Assault Rifle Ballistic Cannon Light Cannon Impact Weapon Heavy Flail Slashing Weapon Katana Build | -11 -10 -9 -8 ------- Run | Yrd Mat Mat Mat Slots Evolved 4 | . . 2 2 Power . | . . . . Propulsion . | . . . . Utility 4 | . . 2 2 Weapon . | . . . . Parts Attached 52 | 6 2 21 23 Power 6 | 1 . 4 1 Engine 6 | 1 . 4 1 Core . | . . . . Reactor . | . . . . Propulsion 12 | 2 . 5 5 Treads 4 | . . 4 . Leg 7 | 2 . . 5 Wheel 1 | . . 1 . Hover . | . . . . Flight . | . . . . Utility 15 | 1 1 6 7 Device 5 | . . 2 3 Storage 2 | 1 1 . . Processor 2 | . . 1 1 Hackware 2 | . . 2 . Protection 4 | . . 1 3 Artifact . | . . . . Weapon 19 | 2 1 6 10 Energy Gun 3 | . . . 3 Energy Cannon 2 | . . 1 1 Ballistic Gun 6 | 2 . 3 1 Ballistic Cannon 3 | . 1 2 . Launcher . | . . . . Special Weapon . | . . . . Impact Weapon 4 | . . . 4 Slashing Weapon 1 | . . . 1 Piercing Weapon . | . . . . Special Melee Weapon . | . . . . Unidentified Prototypes 3 | . . 2 1 Parts Lost 16 | . . 3 13 Power 2 | . . . 2 Propulsion 5 | . . 2 3 Utility 6 | . . . 6 Weapon 3 | . . 1 2 Highest Loss Streak 8 | . . 1 8 To Critical Strikes . | . . . . Average Slot Usage (%) 94 | . 95 94 94 Engine 10 | . 14 11 8 Treads 4 | . . 7 2 Leg 12 | . 28 7 14 Wheel 1 | . . 2 . Device 8 | . . 10 9 Storage 12 | . 23 11 9 Processor 8 | . . 11 9 Hackware 4 | . . 1 11 Protection 9 | . . 9 11 Energy Cannon 3 | . . 4 3 Ballistic Gun 8 | . 18 9 4 Ballistic Cannon 5 | . 9 7 . Impact Weapon 1 | . . . 4 Naked Turns . | . . . . Heaviest Build 35 | 13 25 28 35 Greatest Support 46 | 20 20 46 46 Greatest Overweight (x) 10 | . 1 9 10 Average Overweight (x) . | . . . . Largest Inventory Capacity 10 | 8 10 10 10 Average Capacity 9 | 7 9 10 10 Most Carried 10 | 5 8 10 10 Average Carried 7 | . 4 7 9 Final Capacity 10 | 8 10 10 10 Final Carried 10 | . 8 10 8 Class Distribution -------------------- 58% | Mutant 28% | Scavenger-Mutant 13% | Hacker-Mutant Dominant Class ---------------- Mutant | -10/Materials Mutant | -9/Materials Scavenger-Mutant | -8/Materials Resources | -11 -10 -9 -8 ----------- Run | Yrd Mat Mat Mat Matter Collected 1243 | 204 171 487 381 Remotely . | . . . . Salvage Created 1817 | . 164 778 875 Parts 101 | . 12 47 42 Haulers Intercepted 6 | . 2 2 2 Recyclers Shooed . | . . . . Parts Field Recycled . | . . . . Retrieved Matter . | . . . . Parts Self-Destructed . | . . . . Prevented . | . . . . Kills | -11 -10 -9 -8 ------- Run | Yrd Mat Mat Mat Combat Hostiles Destroyed 38 | . 2 19 17 Melee 8 | . . . 8 Guns 18 | . . 12 6 Cannons 10 | . 2 7 1 Classes Destroyed 8 | . 3 4 1 Worker 1 | . . 1 . Hauler 6 | . 2 2 2 Recycler 1 | . . 1 . Watcher 6 | . 1 2 3 Swarmer 11 | . . 8 3 Grunt 16 | . 2 6 8 Sentry 10 | . . 5 5 Hunter 1 | . . . 1 Best Kill Streak 5 | . 2 5 4 Combat Bots Only 5 | . 2 5 4 Max Kills in Single Turn 2 | . 1 2 1 Gunslinging . | . . . . Exploded . | . . . . Melee 1 | . . . 1 Uniques/NPCs Destroyed . | . . . . Combat | -11 -10 -9 -8 -------- Run | Yrd Mat Mat Mat Hostile Shots Fired 249 | . 6 95 148 Missed 68 | . 1 27 40 Damage Taken 2846 | . 96 764 1986 Core 829 | . 39 191 599 Absorbed by Shields 116 | . . . 116 Redirected to Shielding 159 | . . 17 142 Core Remaining (%) 78 | 100 84 52 . Volleys Fired 117 | . 18 68 31 Largest 2 | . 2 2 2 Hottest 107 | . 55 107 93 Shots Fired 223 | . 36 135 52 Gun 160 | . 20 102 38 Cannon 63 | . 16 33 14 Launcher . | . . . . Special . | . . . . Kinetic 189 | . 36 128 25 Thermal 21 | . . 7 14 Explosive . | . . . . Electromagnetic 13 | . . . 13 Robot Hit Streak 17 | . 5 17 8 Robot Miss Streak 4 | . 3 2 4 Penetration Max . | . . . . Secondary Targets 1 | . . . 1 Max Gunslinging Chain 1 | . . . 1 Shots Hit Robots 188 | . 20 95 73 Core Hits 83 | . 7 38 38 Critical Kills 1 | . . . 1 Critical Parts Destroyed 4 | . . 1 3 Critical Strikes 7 | . 1 1 5 Destroy 2 | . . 1 1 Blast 1 | . 1 . . Corrupt 1 | . . . 1 Smash 3 | . . . 3 Melee Attacks 46 | . . . 46 Impact 29 | . . . 29 Slashing 17 | . . . 17 Piercing . | . . . . Sneak Attacks 3 | . . . 3 Combat Hostiles 1 | . . . 1 Follow-up Attacks 1 | . . . 1 Damage Inflicted 3874 | . 282 1378 2214 Guns 1748 | . 117 927 704 Cannons 822 | . 165 451 206 Explosions . | . . . . Melee 1304 | . . . 1304 Ramming . | . . . . Kinetic 2027 | . 282 1296 449 Thermal 288 | . . 82 206 Explosive . | . . . . Electromagnetic 255 | . . . 255 Impact 1024 | . . . 1024 Slashing 280 | . . . 280 Piercing . | . . . . Highest Corruption 1 | . . 1 . Average Corruption 1 | . . 1 . Corruption Purged . | . . . . Corruption Blocked . | . . . . Effects 1 | . . 1 . Matter Fused 1 | . . 1 . Overload Shots . | . . . . Overflow Damage 270 | . . 3 267 Projectiles 3 | . . 3 . Explosions . | . . . . Melee 267 | . . . 267 Knockbacks 6 | . . 4 2 Impact 2 | . . . 2 Kinetic 4 | . . 4 . Secondary . | . . . . Self-Inflicted Damage . | . . . . Shots . | . . . . Rammed . | . . . . Targets Rammed . | . . . . Kicked . | . . . . Crushed . | . . . . Highest Temperature 162 | . 35 78 162 Average Temperature 38 | . 13 20 55 Received Heat Transfer 771 | . 63 285 423 Siege Activations . | . . . . Robots Corrupted . | . . . . Combat Hostiles . | . . . . Parts Fried 13 | . . . 13 Impact Corruptions 13 | . . . 13 Robots Melted . | . . . . Combat Hostiles . | . . . . Parts Melted . | . . . . Heat Transferred 518 | . . 148 370 Parts Sabotaged . | . . . . Parts Stolen . | . . . . Parts Stripped . | . . . . Power Chain Reactions . | . . . . Alert | -11 -10 -9 -8 ------- Run | Yrd Mat Mat Mat Peak Influence 328 | . 137 297 328 Initial 73 | . . . 73 Average 139 | . 47 164 147 Maximum Alert Level 1 | . . 1 1 Low Security (%) 66 | 100 100 50 73 Level 1 33 | . . 49 26 Level 2 . | . . . . Level 3 . | . . . . Level 4 . | . . . . Level 5 . | . . . . High Security . | . . . . Max Security . | . . . . Squads Dispatched 7 | . . 1 6 Investigation 2 | . . 1 1 Extermination . | . . . . Reinforcement 2 | . . . 2 Assault . | . . . . Garrison 3 | . . . 3 Intercept . | . . . . Searches Triggered . | . . . . Construction Impeded . | . . . . Haulers Reinforced . | . . . . Active Scanning Responses . | . . . . Cargo Convoy Interrupts . | . . . . Stealth | -11 -10 -9 -8 --------- Run | Yrd Mat Mat Mat Distress Signals 5 | . . 3 2 Communications Jammed . | . . . . Distress Signals . | . . . . Times Spotted 71 | . 7 31 33 Peak Tracking Total 7 | . 2 7 7 Tactical Retreats 6 | . . 5 1 Traps | -11 -10 -9 -8 ------- Run | Yrd Mat Mat Mat Traps Triggered 3 | . 1 1 1 Indirectly . | . . . . Trap Hack Attempts . | . . . . Triggered . | . . . . Disarmed . | . . . . Reprogrammed . | . . . . Reused . | . . . . Traps Extracted . | . . . . Installed . | . . . . Triggered . | . . . . Machines | -11 -10 -9 -8 ---------- Run | Yrd Mat Mat Mat Machines Disabled 1 | . . . 1 Max in Single Turn 1 | . . . 1 Garrison Access 1 | . . . 1 Machines Repaired . | . . . . Machines Dismantled . | . . . . Machines Sabotaged . | . . . . Overloaded Fab Kills . | . . . . Hacking | -11 -10 -9 -8 --------- Run | Yrd Mat Mat Mat Machines Accessed 11 | . 2 5 4 Terminals 9 | . 2 4 3 Fabricators . | . . . . Repair Stations . | . . . . Recycling Units . | . . . . Scanalyzers 1 | . . 1 . Garrison Access 1 | . . . 1 Total Hacks 29 | . 4 9 16 Successful 17 | . 1 5 11 Failed 12 | . 3 4 5 Catastrophic 2 | . 1 1 . Database Lockouts . | . . . . Manual 6 | . 4 2 . Terminals 26 | . 4 7 15 Fabricators . | . . . . Repair Stations . | . . . . Recycling Units . | . . . . Scanalyzers 2 | . . 2 . Garrison Access 1 | . . . 1 Terminal Hacks 14 | . 1 3 10 Emergency Access Points 1 | . . . 1 Alert Level 3 | . . . 3 Unreport Threat 1 | . . . 1 Locate Traps 1 | . . . 1 Dispatch Records 2 | . . 1 1 Maintenance Status 1 | . . . 1 Surveillance Status 1 | . . 1 . Hauler Manifests 3 | . 1 1 1 Zone Layout 1 | . . . 1 Fabricator Hacks . | . . . . Repair Station Hacks . | . . . . Recycling Unit Hacks . | . . . . Scanalyzer 2 | . . 2 . Insert Component 1 | . . 1 . Analyze 1 | . . 1 . Garrison Access Hacks 1 | . . . 1 Seal Access 1 | . . . 1 Unauthorized Hacks . | . . . . Terminals . | . . . . Fabricators . | . . . . Repair Stations . | . . . . Recycling Units . | . . . . Scanalyzers . | . . . . Garrison Access . | . . . . Data Cores Recovered . | . . . . Used . | . . . . Hacking Detections 8 | . 2 3 3 Full Trace Events 2 | . . 1 1 Feedback Events 1 | . . 1 . Corruption 1 | . . 1 . Feedback Blocked . | . . . . Robot Schematics Acquired . | . . . . Robots Built . | . . . . Authchips . | . . . . Time . | . . . . Total Robot Build Rating . | . . . . Part Schematics Acquired 1 | . . 1 . Parts Built . | . . . . Authchips . | . . . . Time . | . . . . Total Part Build Rating . | . . . . Parts Repaired . | . . . . Time . | . . . . Parts Recycled . | . . . . Recycled Matter . | . . . . Retrieved Matter . | . . . . Retrieved Components . | . . . . Parts Scanalyzed 1 | . . 1 . Part Schematics Acquired 1 | . . 1 . Parts Damaged . | . . . . Bothacking | -11 -10 -9 -8 ------------ Run | Yrd Mat Mat Mat Used RIF Installer . | . . . . Robots Hacked . | . . . . Non-combat . | . . . . Combat . | . . . . Robot Hacks Applied . | . . . . Relay Couplers Released . | . . . . Fabnet Peak Effective % . | . . . . Robots Rewired . | . . . . Allies Hacked . | . . . . Hacks Repelled . | . . . . Allies | -11 -10 -9 -8 -------- Run | Yrd Mat Mat Mat Total Allies . | . . . . Largest Group . | . . . . Highest-Rated Group . | . . . . Highest-Rated Ally . | . . . . Total Orders . | . . . . Ally Attacks . | . . . . Total Damage . | . . . . Kills . | . . . . Allies Corrupted . | . . . . Allies Melted . | . . . . Intel | -11 -10 -9 -8 ------- Run | Yrd Mat Mat Mat Robot Analysis Total . | . . . . Derelict Logs Recovered . | . . . . Drone Launches . | . . . . Drone Recoveries . | . . . . Exploration | -11 -10 -9 -8 ------------- Run | Yrd Mat Mat Mat Turns Passed 3501 | 61 468 1692 1280 Spaces Moved 1489 | 49 248 661 531 Core 24 | 21 . 1 2 Treads 426 | . . 326 100 Legs 954 | 28 248 249 429 Wheels 85 | . . 85 . Hover . | . . . . Flight . | . . . . Fastest Speed 50 | 50 120 110 120 Average Speed 171 | 90 159 190 159 Slowest Speed 550 | 120 190 500 550 Overloaded Moves . | . . . . Propulsion Burnouts . | . . . . Robots Hopped . | . . . . Cave-ins Triggered . | . . . . Exploration Rate (%) 36 | 3 48 49 44 Regions Visited 3 Branch Regions . Pre-discovered Areas . | . . . . Known Exits Taken 1 | . . 1 . Unknown Exits Taken 2 | 1 1 . . Scrap Searched . | . . . . Spaces Dug 2 | . . . 2 Terrain Destroyed 2 | . . . 2 Melee 2 | . . . 2 Projectile . | . . . . AOE . | . . . . Terrain Rammed . | . . . . Walls Destroyed . | . . . . Machines Disabled . | . . . . Actions | -11 -10 -9 -8 --------- Run | Yrd Mat Mat Mat Total 2153 | 65 285 964 839 Wait 377 | 6 9 183 179 Move 1486 | 48 247 660 531 Hop . | . . . . Pick Up 50 | 5 9 19 17 Fast Attach 8 | 1 . 4 3 Attach 25 | 5 1 7 12 Detach 1 | . . . 1 Swap 19 | . 1 10 8 Drop 26 | . . 13 13 Fire 117 | . 18 68 31 Melee 44 | . . . 44 Ram . | . . . . Kick . | . . . . Crush . | . . . . Escape Stasis . | . . . . Rewire . | . . . . Trap . | . . . . Miscellaneous . | . . . . Route ------- -11/Scrapyard -10/Materials (discovered 2 exits: *Mat x2) -9/Materials (discovered 2 exits: *Mat x2) -8/Materials History --------- Turn | Location | Event 2 | -11/Scrapyard | Met Revision 17 13 | -11/Scrapyard | Discovered new exit (range 15) 62 | -11/Scrapyard | Entered Materials 254 | -10/Materials | Discovered new exit (range 13) 311 | -10/Materials | Discovered new exit (range 12) 315 | -10/Materials | Build established: Mutant 530 | -10/Materials | Entered another Materials area 530 | -9/Materials | Evolved 2 slots: Utility x2 1367 | -9/Materials | Build established: Scavenger-Mutant 1462 | -9/Materials | Discovered new exit (range 13) 1809 | -9/Materials | Discovered new exit (range 16) 1850 | -9/Materials | Build established: Mutant 2220 | -9/Materials | Identified exit to Materials 2222 | -9/Materials | Entered another Materials area 2222 | -8/Materials | Evolved 2 slots: Utility x2 2411 | -8/Materials | Build established: Hacker-Mutant 2690 | -8/Materials | Garrison activated, responded to threat 3170 | -8/Materials | Build established: Scavenger-Mutant 3415 | -8/Materials | Core integrity fell below 50% 3428 | -8/Materials | Lost 3 parts (2n1u) 3493 | -8/Materials | Core integrity fell below 20% 3502 | -8/Materials | Destroyed by H-61 Shepherd with Heavy Assault Cannon Last Messages --------------- 03491_ U-05 Engineer lays Concrete. 03491_ K-01 Serf collects debris. 03492_ U-05 Engineer lays Concrete. 03494_ K-01 Serf collects debris. 03494_ U-05 Engineer lays Concrete. 03495_ K-01 Serf collects debris. 03496_ U-05 Engineer lays Concrete. 03497_ Destroyed Visual Processing Unit. 03497_ H-61 Shepherd system corrupted by crushing effect. 03497_ K-01 Serf collects debris. 03497_ U-05 Engineer lays Concrete. 03497_ Penetrated by Slug. 03498_ U-05 Engineer lays Concrete. 03498_ K-01 Serf collects debris. 03500_ U-05 Engineer lays Concrete. 03501_ K-01 Serf collects debris. 03501_ U-05 Engineer lays Concrete. 03502_ K-01 Serf collects debris. 03502_ Penetrated by Slug. Map ----- +----------------------------------------------------+ | """"" !#???????????????????????????????????? | | """"" !#???????????????????????????????????? | | """"" !##???????????????????????????????????? | | """ ####????????????????????????????????????? | | ##???????????????????????????????????????? | | #????????????????????????????????????????? | | """ ####?????????????????????????????????????? | | """"" #?????????????????????????????????????? | | """"" ####### ?????????????????????????????? | | """"" ????????????????????????????? | | """ ????????????????????????????? | | ??????????????????????????????? | | #?????????????????????????????????????? | | #### #???????##############????????????????? | | ###### ########### #????????????????? | | = #% %# # [ #????????????????? | | = =#% # != # = #????????????????? | | %+ % + != # #????????????????? | | / =!# # ! # + ??????????? | | # # "######+######?#??????????????? | | ###### ############ ### ##### #??????????????? | | ???####+######### # # #??????????????? | | ???# % # ## # # # #??????????????? | | ???# ## # #??????????????? | | ???# # k %; +??????????????? | | ???# # k =%@% ##+##+#??????????????? | | #### ## %%;[H #????????????????????? | | ! %+!* # k % ;! #????????????????????? | | ####! # %%!;%= #????????????????????? | | ???# ## u *[= #????????????????????? | | #### ## = %*%# k #????????????????????? | | ##+############ #### % #????????????????????? | | ## ########??####;#???#! #????????????????????? | | !## # #????? ????#%gg ???????????????????? | | !!## # """ #???? ?????# ?????????????????? | | !!## # """ #??? ??????# ???????????????? | | ## # """ #??; ???????# """ ??????????????? | | #### # """ #?## ???????? """ ??????????????? | | # """ #??#????????? """ ??????????????? | | + #???????????? "?????#?????????????? | | # """ #???????????? ???????????????????? | | ###### """ #???????????? ???????????????????? | | ?????# """ #???????????? "???????????????????? | | ?????# """ #???????????? ?????????????????????? | | ?????# """ #????????????????????????????????????? | | ##???# #????????????????????????????????????? | | #######+####????????????????????????????????????? | | #???????????????????????????????????????? | | #???????????????????????????????????????? | | T #???????????????????????????????????????? | +----------------------------------------------------+ Best States ------------- Heat Dissipation 31 Energy Generation 14 Energy Capacity 280 Matter Stores 300 Matter Capacity 300 Sight Range 16 Robot Scan Range 14 Terrain Scan Density 10 Armor Coverage 150 Propulsion Shielding 66 Utility Shielding 33 Evasion (%) 55 Targeting Accuracy 6 Recoil Reduction 2 Offensive Hacking 20 Item Schematics ----------------- Mni. Grenade Launcher | -9/Materials | Scanalyzed Robot Schematics ------------------ None Fabricated ------------ Nothing Alien Tech Used ----------------- None Achievements -------------- None Challenges ------------ None Game ------ Seed AssemblyPortableSubcomponent Manual? 0 Play Time 00:34:25 Cumulative 19.3 hours Start 2024.08.03 @ 16:25:03 End 2024.08.03 @ 17:00:44 Sessions 1 Manual Loads 0 Difficulty Rogue Special Mode None Game No. 28 Rogue 24 Adventurer 4 Explorer 0 Win Type - Total 0 Types 0/0/0/0/0/0/0/0/0 Lore% 7 Gallery% 24 Achievement% 16 Wizard Run 0 Options --------- Layout 1 ASCII 0 Keyboard 0 Movement Mouse Keybinds 0 Fullscreen 2 Font 24/Smallcaps Map View 50x35 Zoom Use 0% Tactical HUD 1 Map Filters NONE Filters NONE Steam 1 RUN: dd7b40a0-4f85-42db-9deb-8206ab74f6e2